[Event "*** Titled Tuesday 3|2 Blitz (Early)"]
[Site "Chess.com"]
[Date "2017.01.03"]
[Round "2"]
[White "yurisolo"]
[Black "iturrizaga"]
[Result "0-1"]
[WhiteElo "2463"]
[BlackElo "2637"]
[TimeControl "180+2"]
[EndTime "11:19:52 PST"]
[Termination "iturrizaga won by resignation"]

1. e4 {[%clk 0:03:01.9]} 1... c5 {[%clk 0:03:01.2]} 2. Nf3 {[%clk 0:03:02.5]}
2... g6 {[%clk 0:03:02.6]} 3. d4 {[%clk 0:03:03.7]} 3... cxd4 {[%clk 0:03:04.5]}
4. Nxd4 {[%clk 0:03:05.6]} 4... Nc6 {[%clk 0:03:05.6]} 5. Nc3 {[%clk 0:03:07.2]}
5... Bg7 {[%clk 0:03:06.6]} 6. Be3 {[%clk 0:03:08.7]} 6... Nf6 {[%clk
0:03:08.1]} 7. Bc4 {[%clk 0:03:08.8]} 7... O-O {[%clk 0:03:09.7]} 8. Bb3 {[%clk
0:03:09.2]} 8... a5 {[%clk 0:03:11.4]} 9. O-O {[%clk 0:03:09]} 9... d6 {[%clk
0:03:12.8]} 10. Ndb5 {[%clk 0:03:06.1]} 10... b6 {[%clk 0:03:14.2]} 11. Qe2
{[%clk 0:03:03.1]} 11... Ba6 {[%clk 0:03:15.4]} 12. Rad1 {[%clk 0:03:00.3]}
12... Nd7 {[%clk 0:03:10.9]} 13. a4 {[%clk 0:02:37.6]} 13... Nc5 {[%clk
0:03:11.5]} 14. Bc4 {[%clk 0:02:37.6]} 14... Qd7 {[%clk 0:02:59.7]} 15. Bxc5
{[%clk 0:02:30.2]} 15... bxc5 {[%clk 0:02:59]} 16. Nxd6 {[%clk 0:02:29.5]} 16...
Nd4 {[%clk 0:02:42.9]} 17. Rxd4 {[%clk 0:02:06.1]} 17... cxd4 {[%clk 0:02:42.3]}
18. Bxa6 {[%clk 0:01:31.6]} 18... Qxd6 {[%clk 0:02:20.9]} 19. Bb7 {[%clk
0:01:29.3]} 19... dxc3 {[%clk 0:02:18.1]} 20. Bxa8 {[%clk 0:01:30.6]} 20... Rxa8
{[%clk 0:02:15.3]} 21. Rd1 {[%clk 0:01:30]} 21... cxb2 {[%clk 0:02:01.1]} 22.
Rxd6 {[%clk 0:01:30.7]} 22... b1=Q+ {[%clk 0:01:44.4]} 23. Rd1 {[%clk
0:01:31.5]} 23... Qb4 {[%clk 0:01:38.2]} 24. e5 {[%clk 0:01:32.9]} 24... Qxa4
{[%clk 0:01:37.1]} 25. e6 {[%clk 0:01:34.2]} 25... f5 {[%clk 0:01:29.7]} 26. g3
{[%clk 0:01:25.4]} 26... Bf6 {[%clk 0:01:29.2]} 27. h4 {[%clk 0:01:10.6]} 27...
Qe4 {[%clk 0:01:26.4]} 0-1

[Event "*** Titled Tuesday 3|2 Blitz (Early)"]
[Site "Chess.com"]
[Date "2017.01.03"]
[Round "2"]
[White "Frolyanov_D"]
[Black "GMNeiksans"]
[Result "1-0"]
[WhiteElo "2476"]
[BlackElo "2652"]
[TimeControl "180+2"]
[EndTime "11:20:03 PST"]
[Termination "Frolyanov_D won by resignation"]

1. e4 {[%clk 0:03:02]} 1... c5 {[%clk 0:03:00.5]} 2. Nf3 {[%clk 0:03:02.9]} 2...
e6 {[%clk 0:03:01.7]} 3. d4 {[%clk 0:03:03.9]} 3... cxd4 {[%clk 0:03:02.9]} 4.
Nxd4 {[%clk 0:03:05.8]} 4... Nc6 {[%clk 0:03:04]} 5. Nc3 {[%clk 0:03:06.8]} 5...
Qc7 {[%clk 0:03:04.7]} 6. Be3 {[%clk 0:03:06.9]} 6... a6 {[%clk 0:03:05.4]} 7.
f4 {[%clk 0:03:01.4]} 7... Nxd4 {[%clk 0:03:03.9]} 8. Qxd4 {[%clk 0:03:00.5]}
8... b5 {[%clk 0:03:05]} 9. Be2 {[%clk 0:02:51.5]} 9... Bb7 {[%clk 0:03:05.4]}
10. O-O {[%clk 0:02:49.2]} 10... Rc8 {[%clk 0:03:05.9]} 11. Kh1 {[%clk
0:02:41.3]} 11... h5 {[%clk 0:02:11]} 12. f5 {[%clk 0:02:38.3]} 12... e5 {[%clk
0:02:08.5]} 13. Qd2 {[%clk 0:02:34.5]} 13... Nf6 {[%clk 0:02:09.4]} 14. Bg5
{[%clk 0:02:28.2]} 14... Nxe4 {[%clk 0:02:07.2]} 15. Nxe4 {[%clk 0:02:28.8]}
15... Bxe4 {[%clk 0:02:08.4]} 16. f6 {[%clk 0:02:09.6]} 16... d5 {[%clk
0:01:55.6]} 17. Bd3 {[%clk 0:02:04.6]} 17... Bxd3 {[%clk 0:01:50.3]} 18. Qxd3
{[%clk 0:02:06]} 18... Qc4 {[%clk 0:01:47.3]} 19. Qf5 {[%clk 0:02:06.1]} 19...
gxf6 {[%clk 0:00:58]} 20. Bxf6 {[%clk 0:02:03.7]} 20... Rg8 {[%clk 0:00:58.1]}
21. Qxe5+ {[%clk 0:02:02.7]} 21... Kd7 {[%clk 0:00:58.8]} 22. Qf5+ {[%clk
0:01:50.5]} 22... Kc7 {[%clk 0:00:58.6]} 23. Be5+ {[%clk 0:01:51.3]} 23... Kb6
{[%clk 0:00:59.3]} 24. Qxf7 {[%clk 0:01:43.3]} 24... Bc5 {[%clk 0:00:36.9]} 25.
Rf6+ {[%clk 0:01:41]} 25... Ka5 {[%clk 0:00:38.3]} 26. Bc7+ {[%clk 0:01:38.8]}
26... Rxc7 {[%clk 0:00:33.9]} 27. Qxc7+ {[%clk 0:01:38.6]} 1-0

[Event "*** Titled Tuesday 3|2 Blitz (Early)"]
[Site "Chess.com"]
[Date "2017.01.03"]
[Round "2"]
[White "Kouzari"]
[Black "bivark"]
[Result "0-1"]
[WhiteElo "2392"]
[BlackElo "2357"]
[TimeControl "180+2"]
[EndTime "11:20:33 PST"]
[Termination "bivark won on time"]

1. d4 {[%clk 0:03:02]} 1... d5 {[%clk 0:02:59.4]} 2. c4 {[%clk 0:03:03.5]} 2...
c6 {[%clk 0:03:00.5]} 3. Nc3 {[%clk 0:03:04.5]} 3... Nf6 {[%clk 0:03:01.8]} 4.
Nf3 {[%clk 0:03:06]} 4... a6 {[%clk 0:03:02.7]} 5. cxd5 {[%clk 0:03:06]} 5...
cxd5 {[%clk 0:03:03.6]} 6. Bf4 {[%clk 0:03:07.6]} 6... Nc6 {[%clk 0:03:03.1]} 7.
Rc1 {[%clk 0:03:09.1]} 7... Bf5 {[%clk 0:03:02.1]} 8. Ne5 {[%clk 0:03:10.7]}
8... Rc8 {[%clk 0:02:56.9]} 9. e3 {[%clk 0:03:09.9]} 9... Nxe5 {[%clk
0:02:41.4]} 10. dxe5 {[%clk 0:03:10.2]} 10... Ne4 {[%clk 0:02:42.2]} 11. Nxe4
{[%clk 0:03:03.7]} 11... Bxe4 {[%clk 0:02:42.3]} 12. f3 {[%clk 0:02:39.6]} 12...
Qa5+ {[%clk 0:02:21.4]} 13. Kf2 {[%clk 0:02:37.5]} 13... Rxc1 {[%clk 0:02:19.8]}
14. Qxc1 {[%clk 0:02:38.3]} 14... Bf5 {[%clk 0:02:21.4]} 15. g4 {[%clk
0:02:37.5]} 15... Bd7 {[%clk 0:02:21.9]} 16. a3 {[%clk 0:02:07]} 16... e6 {[%clk
0:02:22.3]} 17. Bd3 {[%clk 0:02:03.2]} 17... Be7 {[%clk 0:02:12.8]} 18. Qc2
{[%clk 0:02:04.4]} 18... Ba4 {[%clk 0:02:00]} 19. Qc8+ {[%clk 0:01:56]} 19...
Bd8 {[%clk 0:01:48.9]} 20. b4 {[%clk 0:01:11.8]} 20... Qc7 {[%clk 0:01:45.8]}
21. Qxc7 {[%clk 0:01:12.1]} 21... Bxc7 {[%clk 0:01:47.6]} 22. Rc1 {[%clk
0:01:13]} 22... Kd7 {[%clk 0:01:48.2]} 23. g5 {[%clk 0:01:13.8]} 23... Bb6
{[%clk 0:01:24.7]} 0-1

[Event "*** Titled Tuesday 3|2 Blitz (Early)"]
[Site "Chess.com"]
[Date "2017.01.03"]
[Round "2"]
[White "E-Shaposhnikov"]
[Black "Ginger_GM"]
[Result "1-0"]
[WhiteElo "2724"]
[BlackElo "2455"]
[TimeControl "180+2"]
[EndTime "11:21:05 PST"]
[Termination "E-Shaposhnikov won by resignation"]

1. Nf3 {[%clk 0:03:02]} 1... f5 {[%clk 0:03:00.6]} 2. d3 {[%clk 0:03:02.1]} 2...
d6 {[%clk 0:03:01.4]} 3. e4 {[%clk 0:03:03]} 3... e5 {[%clk 0:03:02.5]} 4. exf5
{[%clk 0:02:54.9]} 4... Bxf5 {[%clk 0:03:02]} 5. d4 {[%clk 0:02:55.4]} 5... e4
{[%clk 0:02:54.8]} 6. Ng5 {[%clk 0:02:56.5]} 6... Be7 {[%clk 0:02:50.8]} 7. d5
{[%clk 0:02:49.7]} 7... Nf6 {[%clk 0:02:31.6]} 8. Nc3 {[%clk 0:02:43.7]} 8...
O-O {[%clk 0:02:21.7]} 9. Bc4 {[%clk 0:02:35.2]} 9... h6 {[%clk 0:02:15]} 10.
Nh3 {[%clk 0:02:28.9]} 10... Nbd7 {[%clk 0:02:12.5]} 11. Nf4 {[%clk 0:02:26.6]}
11... Ne5 {[%clk 0:02:13.4]} 12. Be2 {[%clk 0:02:25.4]} 12... Qd7 {[%clk
0:01:53.5]} 13. h3 {[%clk 0:02:21.4]} 13... Ng6 {[%clk 0:01:53.4]} 14. O-O
{[%clk 0:02:14.9]} 14... Nxf4 {[%clk 0:01:53.4]} 15. Bxf4 {[%clk 0:02:16.8]}
15... Rae8 {[%clk 0:01:52.5]} 16. Bb5 {[%clk 0:02:10.1]} 16... c6 {[%clk
0:01:48.3]} 17. Bc4 {[%clk 0:02:11.6]} 17... Kh8 {[%clk 0:01:45.7]} 18. a4
{[%clk 0:02:08.9]} 18... a6 {[%clk 0:01:39.9]} 19. Qd2 {[%clk 0:02:05.8]} 19...
c5 {[%clk 0:01:27.7]} 20. Rae1 {[%clk 0:01:59.1]} 20... Bd8 {[%clk 0:01:28.5]}
21. Nd1 {[%clk 0:01:33.1]} 21... Qxa4 {[%clk 0:01:21.6]} 22. Ne3 {[%clk
0:01:29.1]} 22... Qd7 {[%clk 0:01:11.8]} 23. Nxf5 {[%clk 0:01:28.6]} 23... Qxf5
{[%clk 0:01:12.4]} 24. Bxd6 {[%clk 0:01:30.1]} 24... Rf7 {[%clk 0:01:08.4]} 25.
Bxc5 {[%clk 0:01:26.3]} 25... b5 {[%clk 0:01:08]} 26. Bb3 {[%clk 0:01:25.6]}
26... Nh5 {[%clk 0:01:00.8]} 27. Qd1 {[%clk 0:01:13.3]} 27... Nf4 {[%clk
0:00:58.4]} 28. Qg4 {[%clk 0:01:14.3]} 28... Qe5 {[%clk 0:00:40.2]} 29. c3
{[%clk 0:01:07.5]} 29... Rf5 {[%clk 0:00:37.3]} 30. Bd4 {[%clk 0:01:04]} 1-0

[Event "*** Titled Tuesday 3|2 Blitz (Early)"]
[Site "Chess.com"]
[Date "2017.01.03"]
[Round "2"]
[White "Tash_Boy"]
[Black "Izoria123"]
[Result "1/2-1/2"]
[WhiteElo "2464"]
[BlackElo "2685"]
[TimeControl "180+2"]
[EndTime "11:21:16 PST"]
[Termination "Game drawn by agreement"]

1. e4 {[%clk 0:03:01.9]} 1... c6 {[%clk 0:03:00.5]} 2. d4 {[%clk 0:03:00.3]}
2... d5 {[%clk 0:03:02.4]} 3. Nd2 {[%clk 0:02:59.7]} 3... dxe4 {[%clk
0:03:02.4]} 4. Nxe4 {[%clk 0:03:01.2]} 4... Bf5 {[%clk 0:03:04.1]} 5. Ng3 {[%clk
0:02:56.7]} 5... Bg6 {[%clk 0:03:05.1]} 6. Nh3 {[%clk 0:02:57.8]} 6... e6 {[%clk
0:03:05.6]} 7. Nf4 {[%clk 0:02:58.3]} 7... Qc7 {[%clk 0:03:06.2]} 8. h4 {[%clk
0:02:54.7]} 8... Bd6 {[%clk 0:03:06.5]} 9. Nxg6 {[%clk 0:02:52.3]} 9... hxg6
{[%clk 0:03:08.4]} 10. Ne4 {[%clk 0:02:53.2]} 10... Bf4 {[%clk 0:03:09.4]} 11.
g3 {[%clk 0:02:31.4]} 11... Bxc1 {[%clk 0:03:08.6]} 12. Qxc1 {[%clk 0:02:32]}
12... Nf6 {[%clk 0:03:01.8]} 13. Ng5 {[%clk 0:02:32.1]} 13... Qa5+ {[%clk
0:02:46.2]} 14. Qd2 {[%clk 0:02:24.9]} 14... Qxd2+ {[%clk 0:02:37.4]} 15. Kxd2
{[%clk 0:02:25.1]} 15... Ke7 {[%clk 0:02:39.3]} 16. Bg2 {[%clk 0:02:25.7]} 16...
Na6 {[%clk 0:02:38.2]} 17. Rhe1 {[%clk 0:02:26.7]} 17... Rab8 {[%clk 0:02:35]}
18. c3 {[%clk 0:02:26.2]} 18... Rhd8 {[%clk 0:02:35.4]} 19. b4 {[%clk
0:02:22.4]} 19... Nc7 {[%clk 0:02:35.5]} 20. Kc2 {[%clk 0:02:19.9]} 20... a5
{[%clk 0:02:33.1]} 21. bxa5 {[%clk 0:02:11.2]} 21... Ra8 {[%clk 0:02:33.8]} 22.
Rab1 {[%clk 0:02:12.8]} 22... Rdb8 {[%clk 0:02:31]} 23. Rb2 {[%clk 0:02:07.4]}
23... Nb5 {[%clk 0:02:21.5]} 24. a4 {[%clk 0:02:04.1]} 24... Nd6 {[%clk
0:02:22]} 25. Kd3 {[%clk 0:02:00.5]} 25... Rc8 {[%clk 0:02:11.8]} 26. Bh3 {[%clk
0:01:46.8]} 26... Rd8 {[%clk 0:01:51.1]} 27. c4 {[%clk 0:01:35.4]} 27... Rd7
{[%clk 0:01:25.3]} 28. c5 {[%clk 0:01:14.6]} 28... Nf5 {[%clk 0:01:20.7]} 29.
Bxf5 {[%clk 0:01:10.2]} 29... gxf5 {[%clk 0:01:21.6]} 30. Reb1 {[%clk
0:01:09.7]} 30... Ra7 {[%clk 0:01:20]} 31. a6 {[%clk 0:01:07.7]} 31... Rxa6
{[%clk 0:01:05.5]} 32. Rxb7 {[%clk 0:01:08.1]} 32... Rxa4 {[%clk 0:01:06.2]} 33.
Rxd7+ {[%clk 0:01:04.4]} 33... Nxd7 {[%clk 0:01:08.1]} 34. Rb7 {[%clk 0:01:06]}
34... Ra3+ {[%clk 0:01:08.4]} 35. Kc4 {[%clk 0:01:00.8]} 1/2-1/2

[Event "*** Titled Tuesday 3|2 Blitz (Early)"]
[Site "Chess.com"]
[Date "2017.01.03"]
[Round "2"]
[White "Dlugy"]
[Black "RitvarsReimanis"]
[Result "1-0"]
[WhiteElo "2657"]
[BlackElo "2441"]
[TimeControl "180+2"]
[EndTime "11:21:29 PST"]
[Termination "Dlugy won by resignation"]

1. d4 {[%clk 0:03:02]} 1... Nf6 {[%clk 0:02:59.9]} 2. Bf4 {[%clk 0:03:02.7]}
2... e6 {[%clk 0:03:01]} 3. e3 {[%clk 0:03:03.4]} 3... d5 {[%clk 0:03:00.3]} 4.
Nd2 {[%clk 0:03:03.2]} 4... c5 {[%clk 0:02:53.5]} 5. c3 {[%clk 0:03:03.3]} 5...
Nc6 {[%clk 0:02:53.7]} 6. Ngf3 {[%clk 0:03:03.2]} 6... cxd4 {[%clk 0:02:42.9]}
7. exd4 {[%clk 0:03:03.8]} 7... Nh5 {[%clk 0:02:44]} 8. Bg5 {[%clk 0:03:02.1]}
8... Be7 {[%clk 0:02:43.5]} 9. Bxe7 {[%clk 0:02:59.1]} 9... Qxe7 {[%clk
0:02:45.4]} 10. Bb5 {[%clk 0:02:56.7]} 10... Bd7 {[%clk 0:02:42.8]} 11. O-O
{[%clk 0:02:54.7]} 11... O-O {[%clk 0:02:35.6]} 12. Re1 {[%clk 0:02:53]} 12...
Nf6 {[%clk 0:02:33]} 13. Bd3 {[%clk 0:02:46.6]} 13... Rab8 {[%clk 0:02:23.2]}
14. Ne5 {[%clk 0:02:45.1]} 14... Nxe5 {[%clk 0:02:21.8]} 15. dxe5 {[%clk
0:02:41.1]} 15... Ne8 {[%clk 0:02:23]} 16. Nf3 {[%clk 0:02:40.1]} 16... b5
{[%clk 0:02:15.4]} 17. a3 {[%clk 0:02:37.3]} 17... a5 {[%clk 0:02:12.5]} 18. Nd4
{[%clk 0:02:38.4]} 18... f5 {[%clk 0:02:02]} 19. b4 {[%clk 0:02:34.3]} 19... a4
{[%clk 0:01:43.1]} 20. Qe2 {[%clk 0:02:29.8]} 20... Nc7 {[%clk 0:01:42.7]} 21.
f4 {[%clk 0:02:31.3]} 21... Rfc8 {[%clk 0:01:43.1]} 22. Rac1 {[%clk 0:02:27.4]}
22... Qe8 {[%clk 0:01:43.6]} 23. Kh1 {[%clk 0:02:21.2]} 23... g6 {[%clk
0:01:37]} 24. g3 {[%clk 0:02:12]} 24... Qe7 {[%clk 0:01:30.8]} 25. Rg1 {[%clk
0:02:10.3]} 25... h5 {[%clk 0:01:25.6]} 26. Kg2 {[%clk 0:02:06.6]} 26... Kf7
{[%clk 0:01:26.8]} 27. Rh1 {[%clk 0:02:05.1]} 27... Rh8 {[%clk 0:01:16.4]} 28.
h3 {[%clk 0:02:00]} 28... g5 {[%clk 0:01:15.1]} 29. Nf3 {[%clk 0:01:58.2]} 29...
gxf4 {[%clk 0:01:11.1]} 30. gxf4 {[%clk 0:01:59.2]} 30... Rbg8+ {[%clk
0:01:12.5]} 31. Kh2 {[%clk 0:02:00.5]} 31... Ke8 {[%clk 0:01:04.1]} 32. Qf2
{[%clk 0:01:58.8]} 32... Bc6 {[%clk 0:00:50.1]} 33. Rhg1 {[%clk 0:01:56.4]}
33... Rg4 {[%clk 0:00:47.4]} 34. Qb6 {[%clk 0:01:52.2]} 34... Ba8 {[%clk
0:00:41]} 35. Bxb5+ {[%clk 0:01:47.3]} 35... Kf7 {[%clk 0:00:41.7]} 36. Ng5+
{[%clk 0:01:43.5]} 36... Kg6 {[%clk 0:00:43]} 37. hxg4 {[%clk 0:01:41.1]} 37...
hxg4+ {[%clk 0:00:43.9]} 38. Kg3 {[%clk 0:01:38.3]} 38... Rh5 {[%clk 0:00:35.5]}
39. Rh1 {[%clk 0:01:30.7]} 39... Rxg5 {[%clk 0:00:33.4]} 40. Qb8 {[%clk
0:01:21.3]} 40... Nxb5 {[%clk 0:00:27.6]} 41. Qg8+ {[%clk 0:01:19.7]} 41... Qg7
{[%clk 0:00:27.1]} 42. Qxe6+ {[%clk 0:01:17.7]} 1-0

[Event "*** Titled Tuesday 3|2 Blitz (Early)"]
[Site "Chess.com"]
[Date "2017.01.03"]
[Round "2"]
[White "Gabrielian_Artur"]
[Black "Ar4uha"]
[Result "1-0"]
[WhiteElo "2668"]
[BlackElo "1200"]
[TimeControl "180+2"]
[EndTime "11:21:44 PST"]
[Termination "Gabrielian_Artur won by resignation"]

1. e4 {[%clk 0:03:02]} 1... e5 {[%clk 0:01:54.8]} 2. Nf3 {[%clk 0:03:01.2]} 2...
d6 {[%clk 0:01:55.3]} 3. d4 {[%clk 0:03:01.8]} 3... exd4 {[%clk 0:01:57.2]} 4.
Nxd4 {[%clk 0:03:03]} 4... Nf6 {[%clk 0:01:58.7]} 5. Nc3 {[%clk 0:03:04.3]} 5...
Be7 {[%clk 0:02:00.3]} 6. Bf4 {[%clk 0:03:05.5]} 6... O-O {[%clk 0:01:57.6]} 7.
Be2 {[%clk 0:03:06.7]} 7... Nc6 {[%clk 0:01:58.8]} 8. Qd2 {[%clk 0:03:07.4]}
8... Nxd4 {[%clk 0:01:58.9]} 9. Qxd4 {[%clk 0:03:08.3]} 9... Be6 {[%clk
0:02:00.8]} 10. O-O {[%clk 0:03:08.1]} 10... Nd7 {[%clk 0:01:59.1]} 11. Rad1
{[%clk 0:03:08.1]} 11... Bf6 {[%clk 0:02:00.1]} 12. Qd2 {[%clk 0:03:09.1]} 12...
Re8 {[%clk 0:01:56.8]} 13. f3 {[%clk 0:03:10]} 13... Ne5 {[%clk 0:01:55.3]} 14.
b3 {[%clk 0:03:10.5]} 14... c6 {[%clk 0:01:38.7]} 15. Kh1 {[%clk 0:03:10.5]}
15... Qa5 {[%clk 0:01:39.7]} 16. Na4 {[%clk 0:03:05.9]} 16... Qxd2 {[%clk
0:01:35.6]} 17. Rxd2 {[%clk 0:03:06.8]} 17... d5 {[%clk 0:01:37]} 18. Nc5 {[%clk
0:03:04.9]} 18... Ng6 {[%clk 0:01:36.5]} 19. Bg3 {[%clk 0:02:59.3]} 19... dxe4
{[%clk 0:01:35.7]} 20. Nxe4 {[%clk 0:02:57]} 20... Be5 {[%clk 0:01:32]} 21. f4
{[%clk 0:02:46]} 21... Bd5 {[%clk 0:01:31.1]} 22. fxe5 {[%clk 0:02:40.3]} 22...
Bxe4 {[%clk 0:01:32.1]} 23. Bc4 {[%clk 0:02:25.4]} 23... Nxe5 {[%clk 0:01:11.2]}
24. Bxe5 {[%clk 0:02:24.3]} 24... Rxe5 {[%clk 0:01:13.1]} 25. Rxf7 {[%clk
0:02:14]} 25... Bd5 {[%clk 0:01:13.8]} 26. Bxd5 {[%clk 0:02:11.8]} 26... cxd5
{[%clk 0:01:15.3]} 27. Rf1 {[%clk 0:02:07.4]} 27... Rae8 {[%clk 0:01:14.7]} 28.
h3 {[%clk 0:02:07.6]} 28... Re2 {[%clk 0:01:12.5]} 29. Rfd1 {[%clk 0:02:08.4]}
29... h6 {[%clk 0:01:08.6]} 30. Kg1 {[%clk 0:02:09.1]} 30... Kf7 {[%clk
0:01:07]} 31. Kf1 {[%clk 0:02:02.9]} 31... Rxd2 {[%clk 0:01:08.2]} 32. Rxd2
{[%clk 0:02:04.4]} 32... Re5 {[%clk 0:01:08.1]} 33. Kf2 {[%clk 0:02:02]} 33...
Ke6 {[%clk 0:01:08.9]} 34. Rd4 {[%clk 0:01:52.8]} 34... a6 {[%clk 0:01:06]} 35.
Rb4 {[%clk 0:01:53.3]} 35... b5 {[%clk 0:01:06.9]} 36. a4 {[%clk 0:01:54.9]}
36... Rf5+ {[%clk 0:00:52.9]} 37. Ke2 {[%clk 0:01:55]} 37... Rg5 {[%clk
0:00:46.2]} 38. g4 {[%clk 0:01:55.6]} 38... h5 {[%clk 0:00:47.6]} 39. axb5
{[%clk 0:01:55.4]} 39... axb5 {[%clk 0:00:49.5]} 40. Kf3 {[%clk 0:01:53.4]}
40... hxg4+ {[%clk 0:00:48.1]} 41. hxg4 {[%clk 0:01:54.7]} 41... Kd6 {[%clk
0:00:45.4]} 42. Rxb5 {[%clk 0:01:55.3]} 42... Kc6 {[%clk 0:00:42.3]} 43. c4
{[%clk 0:01:52.9]} 43... Re5 {[%clk 0:00:30.5]} 44. Rxd5 {[%clk 0:01:53.3]}
44... Re1 {[%clk 0:00:32.2]} 45. b4 {[%clk 0:01:52.3]} 45... Rc1 {[%clk
0:00:30.4]} 46. b5+ {[%clk 0:01:53]} 46... Kc7 {[%clk 0:00:29.9]} 47. Rc5+
{[%clk 0:01:54]} 47... Kd6 {[%clk 0:00:31.8]} 48. Rc6+ {[%clk 0:01:55.2]} 48...
Ke5 {[%clk 0:00:33.5]} 49. b6 {[%clk 0:01:54.4]} 49... Rc3+ {[%clk 0:00:34.2]}
50. Ke2 {[%clk 0:01:55.7]} 50... Kf4 {[%clk 0:00:26.8]} 51. c5 {[%clk 0:01:55]}
51... Kxg4 {[%clk 0:00:28.2]} 52. Rc7 {[%clk 0:01:53.1]} 1-0

[Event "*** Titled Tuesday 3|2 Blitz (Early)"]
[Site "Chess.com"]
[Date "2017.01.03"]
[Round "2"]
[White "alturas_pacificas"]
[Black "Wolverine_master"]
[Result "1-0"]
[WhiteElo "2033"]
[BlackElo "2020"]
[TimeControl "180+2"]
[EndTime "11:21:59 PST"]
[Termination "alturas_pacificas won on time"]

1. d4 {[%clk 0:03:01.9]} 1... Nf6 {[%clk 0:02:59.6]} 2. Bf4 {[%clk 0:03:02.2]}
2... g6 {[%clk 0:02:58]} 3. e3 {[%clk 0:03:03.6]} 3... c5 {[%clk 0:02:57.6]} 4.
c3 {[%clk 0:03:04.3]} 4... Bg7 {[%clk 0:02:58.7]} 5. Nf3 {[%clk 0:03:04.7]} 5...
O-O {[%clk 0:02:59.7]} 6. Be2 {[%clk 0:02:59.6]} 6... d6 {[%clk 0:03:01.1]} 7.
O-O {[%clk 0:02:59.8]} 7... Nc6 {[%clk 0:03:01.9]} 8. h3 {[%clk 0:03:00.9]} 8...
Nd7 {[%clk 0:02:50.2]} 9. Bh2 {[%clk 0:02:55.7]} 9... e5 {[%clk 0:02:50.4]} 10.
dxe5 {[%clk 0:02:46.2]} 10... dxe5 {[%clk 0:02:35.3]} 11. Qd6 {[%clk 0:02:30.9]}
11... Qe7 {[%clk 0:02:05.5]} 12. Qxe7 {[%clk 0:02:29.1]} 12... Nxe7 {[%clk
0:02:07.4]} 13. Na3 {[%clk 0:02:27.7]} 13... e4 {[%clk 0:01:55.1]} 14. Nd2
{[%clk 0:02:23.3]} 14... f5 {[%clk 0:01:55.9]} 15. Ndc4 {[%clk 0:02:12.8]} 15...
a6 {[%clk 0:01:53.1]} 16. Nd6 {[%clk 0:02:03.1]} 16... Be5 {[%clk 0:01:29.2]}
17. Nac4 {[%clk 0:01:45.8]} 17... Bxh2+ {[%clk 0:01:27.6]} 18. Kxh2 {[%clk
0:01:47.7]} 18... b5 {[%clk 0:01:27.6]} 19. Na5 {[%clk 0:01:37.5]} 19... Ne5
{[%clk 0:01:16.7]} 20. a4 {[%clk 0:01:27.2]} 20... bxa4 {[%clk 0:00:48.2]} 21.
Nxc8 {[%clk 0:01:09.9]} 21... Rfxc8 {[%clk 0:00:35.5]} 22. Rxa4 {[%clk
0:01:09.5]} 22... N7c6 {[%clk 0:00:31.7]} 23. Nc4 {[%clk 0:01:01.8]} 23... Kg7
{[%clk 0:00:15]} 24. Nb6 {[%clk 0:01:00.3]} 24... Rab8 {[%clk 0:00:11]} 25. Nxc8
{[%clk 0:01:01.3]} 25... Rxc8 {[%clk 0:00:10.2]} 26. Rxa6 {[%clk 0:01:02.4]}
26... Nd3 {[%clk 0:00:09.3]} 27. Rd1 {[%clk 0:00:47.3]} 27... c4 {[%clk
0:00:04.8]} 28. Rb6 {[%clk 0:00:45.2]} 1-0

[Event "*** Titled Tuesday 3|2 Blitz (Early)"]
[Site "Chess.com"]
[Date "2017.01.03"]
[Round "2"]
[White "evgenyermolaev"]
[Black "Makalexa"]
[Result "1-0"]
[WhiteElo "2386"]
[BlackElo "2180"]
[TimeControl "180+2"]
[EndTime "11:22:03 PST"]
[Termination "evgenyermolaev won by checkmate"]

1. e4 {[%clk 0:03:02]} 1... e5 {[%clk 0:03:00.4]} 2. Nf3 {[%clk 0:02:59.7]} 2...
Nc6 {[%clk 0:03:00.9]} 3. Bc4 {[%clk 0:03:00.2]} 3... Bc5 {[%clk 0:03:00]} 4.
O-O {[%clk 0:03:01.1]} 4... Nf6 {[%clk 0:02:39.1]} 5. d3 {[%clk 0:03:00.1]} 5...
O-O {[%clk 0:02:39.2]} 6. Be3 {[%clk 0:02:50]} 6... Bxe3 {[%clk 0:02:34.2]} 7.
fxe3 {[%clk 0:02:49.7]} 7... d5 {[%clk 0:02:32.6]} 8. exd5 {[%clk 0:02:49.1]}
8... Nxd5 {[%clk 0:02:34]} 9. Qe2 {[%clk 0:02:48.2]} 9... Qd6 {[%clk 0:02:12.9]}
10. Nbd2 {[%clk 0:02:43.4]} 10... Nb6 {[%clk 0:02:07.2]} 11. Bb3 {[%clk
0:02:43.2]} 11... h6 {[%clk 0:02:02.3]} 12. Ne4 {[%clk 0:02:38.7]} 12... Qg6
{[%clk 0:02:03]} 13. Nh4 {[%clk 0:02:32.5]} 13... Qh7 {[%clk 0:02:03.7]} 14. Qf3
{[%clk 0:01:59.5]} 14... Nd8 {[%clk 0:01:40.1]} 15. Qg3 {[%clk 0:01:56.8]} 15...
Kh8 {[%clk 0:01:21.3]} 16. Qxe5 {[%clk 0:01:56.9]} 16... f5 {[%clk 0:01:16.6]}
17. Qg3 {[%clk 0:01:43.8]} 17... Be6 {[%clk 0:00:36.3]} 18. Ng6+ {[%clk
0:01:37.6]} 18... Kg8 {[%clk 0:00:36.3]} 19. Nxf8 {[%clk 0:01:36.1]} 19... Kxf8
{[%clk 0:00:37.5]} 20. Qxc7 {[%clk 0:01:33.5]} 20... Bxb3 {[%clk 0:00:32.5]} 21.
axb3 {[%clk 0:01:19.7]} 21... Nf7 {[%clk 0:00:24.6]} 22. Rxa7 {[%clk 0:01:00]}
22... Rxa7 {[%clk 0:00:19.5]} 23. Qb8+ {[%clk 0:00:59.4]} 23... Nc8 {[%clk
0:00:16.9]} 24. Qxc8+ {[%clk 0:01:00.2]} 24... Ke7 {[%clk 0:00:18.5]} 25. Qc5+
{[%clk 0:01:01.4]} 25... Ke8 {[%clk 0:00:15.4]} 26. Qxa7 {[%clk 0:00:58]} 26...
fxe4 {[%clk 0:00:16.4]} 27. Qxb7 {[%clk 0:00:55.5]} 27... Qg6 {[%clk 0:00:16.4]}
28. Qxf7+ {[%clk 0:00:51.8]} 28... Qxf7 {[%clk 0:00:16.6]} 29. Rxf7 {[%clk
0:00:53.4]} 29... Kxf7 {[%clk 0:00:18.5]} 30. dxe4 {[%clk 0:00:54.5]} 30... Ke6
{[%clk 0:00:18.8]} 31. b4 {[%clk 0:00:55.1]} 31... Ke5 {[%clk 0:00:19.8]} 32. b5
{[%clk 0:00:56.6]} 32... g5 {[%clk 0:00:19.5]} 33. b6 {[%clk 0:00:58]} 33... g4
{[%clk 0:00:20.6]} 34. b7 {[%clk 0:00:58.9]} 34... Kxe4 {[%clk 0:00:21.7]} 35.
b8=Q {[%clk 0:00:59.7]} 35... h5 {[%clk 0:00:22.6]} 36. Qf4+ {[%clk 0:01:01.3]}
36... Kd5 {[%clk 0:00:23]} 37. e4+ {[%clk 0:01:02.7]} 37... Kc6 {[%clk
0:00:21.5]} 38. e5 {[%clk 0:01:04.1]} 38... h4 {[%clk 0:00:22]} 39. Qxg4 {[%clk
0:01:04.6]} 39... h3 {[%clk 0:00:21.8]} 40. gxh3 {[%clk 0:01:05.5]} 40... Kd5
{[%clk 0:00:22.7]} 41. Qf5 {[%clk 0:01:06.6]} 41... Kc4 {[%clk 0:00:22.2]} 42.
Qd3+ {[%clk 0:01:07.1]} 42... Kc5 {[%clk 0:00:22.6]} 43. e6 {[%clk 0:01:08.7]}
43... Kb4 {[%clk 0:00:23.1]} 44. e7 {[%clk 0:01:10.2]} 44... Ka5 {[%clk
0:00:23.3]} 45. e8=Q {[%clk 0:01:11.2]} 45... Kb4 {[%clk 0:00:22.2]} 46. Qeb5#
{[%clk 0:01:11.9]} 1-0